bitfinex/quotes_BTCUSD_20240818
["timestamp","ask_amount","ask_price","bid_price","bid_amount"]
[1723960141474,0.87346659,59678.0,59677.0,0.0029064]
[1723960143285,0.87446659,59678.0,59677.0,0.0029064]
[1723960143892,0.87646659,59678.0,59677.0,0.0029064]
[1723960144092,0.95966659,59678.0,59677.0,0.0029064]
[1723960144305,1.18141219,59678.0,59677.0,0.0029064]
[1723960145125,1.18241219,59678.0,59677.0,0.0029064]
[1723960147062,1.02176659,59678.0,59677.0,0.0029064]
[1723960147238,1.02076659,59678.0,59677.0,0.0029064]
[1723960148145,1.02176659,59678.0,59677.0,0.0029064]
[1723960149142,1.19846659,59678.0,59677.0,0.0029064]
[1723960152212,1.23040116,59678.0,59677.0,0.0029064]
[1723960152457,1.33094016,59678.0,59677.0,0.0029064]
[1723960152676,1.49994906,59678.0,59677.0,0.0029064]
[1723960154160,1.49794906,59678.0,59677.0,0.0029064]
[1723960155847,1.49901449,59678.0,59677.0,0.0029064]
[1723960156086,1.50094906,59678.0,59677.0,0.0029064]
[1723960158863,1.49994906,59678.0,59677.0,0.0029064]
[1723960159847,1.22846659,59678.0,59677.0,0.0029064]
[1723960160251,1.23040116,59678.0,59677.0,0.0029064]
[1723960160450,1.22940116,59678.0,59677.0,0.0029064]
[1723960160655,1.22846659,59678.0,59677.0,0.0029064]
[1723960161462,1.22946659,59678.0,59677.0,0.0029064]
[1723960161664,1.22846659,59678.0,59677.0,0.0029064]
[1723960162085,1.22946659,59678.0,59677.0,0.0029064]
[1723960162953,1.22940116,59678.0,59677.0,0.0029064]
[1723960163155,1.22846659,59678.0,59677.0,0.0029064]
[1723960163359,1.39847256,59678.0,59677.0,0.0029064]
[1723960163566,1.40040713,59678.0,59677.0,0.0029064]
[1723960163785,1.39847256,59678.0,59677.0,0.0029064]
[1723960164037,1.16636659,59678.0,59677.0,0.0029064]
[1723960165801,1.13636659,59678.0,59677.0,0.0029064]
[1723960169660,1.28700986,59678.0,59677.0,0.0029064]
[1723960170416,1.13636659,59678.0,59677.0,0.0029064]
[1723960170613,1.3055856,59678.0,59677.0,0.0029064]
[1723960170814,1.13636659,59678.0,59677.0,0.0029064]
[1723960171877,1.16830116,59678.0,59677.0,0.0029064]
[1723960172220,1.23150116,59678.0,59677.0,0.0029064]
[1723960175767,1.40143143,59678.0,59677.0,0.0029064]
[1723960175965,1.43761887,59678.0,59677.0,0.0029064]
[1723960179276,1.2666886,59678.0,59677.0,0.0029064]
[1723960179480,1.2676886,59678.0,59677.0,0.0029064]
[1723960179777,1.2666886,59678.0,59677.0,0.0029064]
[1723960180006,1.2646886,59678.0,59677.0,0.0029064]
[1723960180217,1.25287767,59678.0,59677.0,0.0029064]
[1723960180329,1.25587767,59678.0,59677.0,0.0029064]
[1723960180535,1.25487767,59678.0,59677.0,4e-07]
[1723960180934,1.35341667,59678.0,59677.0,4e-07]
[1723960181396,1.34641667,59678.0,59677.0,4e-07]
[1723960181571,0.59702257,59670.0,59669.0,0.0009064]
[1723960181773,0.99981416,59670.0,59669.0,0.0009064]
[1723960181974,1.17651416,59670.0,59669.0,0.0009064]
[1723960182172,1.17651416,59670.0,59661.0,0.0783]
[1723960182173,0.82457916,59670.0,59661.0,0.0783]
[1723960182354,0.20783569,59662.0,59661.0,0.0783]
[1723960182554,0.78339347,59662.0,59661.0,0.0783]
[1723960182760,0.88395947,59662.0,59661.0,0.0783]
[1723960183829,0.88395947,59662.0,59661.0,0.0813]
[1723960184211,0.75812378,59662.0,59661.0,0.0813]
[1723960185370,0.75812378,59662.0,59661.0,0.0833]
[1723960185758,0.85687241,59662.0,59661.0,0.005]
[1723960186450,0.86681985,59662.0,59661.0,0.005]
[1723960186659,0.96744286,59662.0,59661.0,0.005]
[1723960187115,0.97044286,59662.0,59661.0,0.005]
[1723960188275,0.97044286,59662.0,59661.0,0.0059075]
[1723960189460,0.86869423,59662.0,59661.0,0.0059075]
[1723960189598,0.86867298,59662.0,59661.0,0.0059075]
[1723960192256,0.76807122,59662.0,59661.0,0.0059075]
[1723960193271,0.86865616,59662.0,59661.0,0.0059075]
[1723960195636,0.97022216,59662.0,59661.0,0.0059075]
[1723960195839,0.99225466,59662.0,59661.0,0.0059075]
[1723960196040,0.99525466,59662.0,59661.0,0.0059075]
[1723960197342,1.41385523,59662.0,59661.0,0.0059075]
[1723960197549,1.58362071,59662.0,59661.0,5e-07]
[1723960197756,1.48105423,59662.0,59661.0,5e-07]
[1723960198378,1.48505423,59662.0,59661.0,5e-07]
[1723960198935,1.48105423,59662.0,59661.0,5e-07]
[1723960199144,1.87427679,59662.0,59661.0,0.0010005]
[1723960199590,1.88827679,59662.0,59661.0,0.0010005]
[1723960199924,1.87427679,59662.0,59661.0,0.0010005]
[1723960200130,1.88827679,59662.0,59661.0,0.0010005]
[1723960200421,2.05983133,59662.0,59661.0,0.0010005]
[1723960200598,2.04583133,59662.0,59661.0,5e-07]
[1723960200805,2.05983133,59662.0,59661.0,5e-07]
[1723960206426,2.41041024,59662.0,59661.0,5e-07]
[1723960206627,2.25983133,59662.0,59661.0,5e-07]
[1723960207027,2.2388557,59662.0,59661.0,5e-07]
[1723960209934,2.08827679,59662.0,59661.0,5e-07]
[1723960211195,2.08527679,59662.0,59661.0,5e-07]
[1723960211411,2.08727679,59662.0,59661.0,5e-07]
[1723960211613,2.08527679,59662.0,59661.0,5e-07]
[1723960211929,2.25683133,59662.0,59661.0,5e-07]
[1723960214850,2.25983133,59662.0,59661.0,5e-07]
[1723960215471,2.25883133,59662.0,59661.0,5e-07]
[1723960215673,2.25683133,59662.0,59661.0,5e-07]
[1723960216716,2.25983133,59662.0,59661.0,5e-07]
[1723960220563,2.25883133,59662.0,59661.0,5e-07]
[1723960220964,2.25683133,59662.0,59661.0,5e-07]
[1723960221298,2.25983133,59662.0,59661.0,5e-07]
[1723960221699,2.25683133,59662.0,59661.0,5e-07]
[1723960222999,2.35739733,59662.0,59661.0,5e-07]
[1723960223205,2.36039733,59662.0,59661.0,5e-07]
[1723960223634,2.35739733,59662.0,59661.0,5e-07]
[1723960225158,2.36122233,59662.0,59661.0,5e-07]
[1723960226285,2.35822233,59662.0,59661.0,5e-07]
[1723960227032,2.53046909,59662.0,59661.0,5e-07]
[1723960227399,2.36122233,59662.0,59661.0,5e-07]
[1723960228146,2.35822233,59662.0,59661.0,5e-07]
[1723960229377,2.52759381,59662.0,59661.0,5e-07]
[1723960229525,2.53059381,59662.0,59661.0,5e-07]
[1723960231175,2.36122233,59662.0,59661.0,5e-07]
[1723960231577,2.53055779,59662.0,59661.0,5e-07]
[1723960232389,2.36122233,59662.0,59661.0,5e-07]
[1723960232590,2.53057733,59662.0,59661.0,5e-07]
[1723960232813,2.36122233,59662.0,59661.0,5e-07]
[1723960233219,2.36022233,59662.0,59661.0,5e-07]
[1723960233437,2.52963291,59662.0,59661.0,5e-07]
[1723960233696,2.52763291,59662.0,59661.0,5e-07]
[1723960233904,2.53063862,59662.0,59661.0,5e-07]
[1723960234124,2.36122233,59662.0,59661.0,5e-07]
[1723960234673,2.36022233,59662.0,59661.0,5e-07]
[1723960235224,2.36122233,59662.0,59661.0,5e-07]
[1723960238669,0.76482957,59653.0,59652.0,0.0009064]
[1723960238846,1.46446116,59653.0,59652.0,0.0009064]
[1723960239064,1.58846116,59653.0,59652.0,0.0009064]
[1723960239791,1.58746116,59653.0,59652.0,0.0009064]
[1723960240173,0.73484057,59652.0,59651.0,8e-07]
[1723960240373,1.70825456,59652.0,59651.0,8e-07]
[1723960240603,1.70625456,59652.0,59651.0,8e-07]
[1723960241236,1.70925456,59652.0,59651.0,8e-07]
[1723960241411,1.72225456,59652.0,59651.0,8e-07]
[1723960241798,1.73425456,59652.0,59651.0,8e-07]
[1723960242364,1.73725456,59652.0,59651.0,8e-07]
[1723960242509,1.74405001,59652.0,59651.0,8e-07]
[1723960242713,1.74705001,59652.0,59651.0,8e-07]
[1723960243042,1.88455001,59652.0,59651.0,8e-07]
[1723960245853,1.95176301,59652.0,59651.0,8e-07]
[1723960246069,2.03376301,59652.0,59651.0,8e-07]
[1723960248955,2.13434601,59652.0,59651.0,8e-07]
[1723960253180,1.98356361,59652.0,59651.0,8e-07]
[1723960254198,1.90156361,59652.0,59651.0,8e-07]
[1723960254397,1.98356361,59652.0,59651.0,8e-07]
[1723960258247,1.84606361,59652.0,59651.0,8e-07]
[1723960260591,1.84606361,59652.0,59651.0,0.0793008]
[1723960260998,1.84688861,59652.0,59651.0,0.1447008]
[1723960261664,1.84688861,59652.0,59651.0,8e-07]
[1723960262065,1.87620229,59652.0,59651.0,8e-07]
[1723960264226,1.87520229,59652.0,59651.0,8e-07]
[1723960264421,0.93486857,59649.0,59648.0,2e-07]
[1723960264631,1.9270547,59649.0,59648.0,2e-07]
[1723960264834,2.0120547,59649.0,59648.0,2e-07]
[1723960264971,2.0090547,59649.0,59648.0,2e-07]
[1723960265393,2.1491547,59649.0,59648.0,2e-07]
[1723960265605,2.33153902,59649.0,59648.0,2e-07]
[1723960265804,2.1591547,59649.0,59648.0,2e-07]
[1723960266112,2.1711547,59649.0,59648.0,2e-07]
[1723960266986,0.96492357,59643.0,59642.0,4e-07]
[1723960267191,2.00565516,59643.0,59642.0,4e-07]
[1723960267353,2.00865516,59643.0,59642.0,4e-07]
[1723960267553,2.00565516,59643.0,59642.0,4e-07]
[1723960267757,2.1772097,59643.0,59642.0,4e-07]
[1723960268182,2.1802097,59643.0,59642.0,4e-07]
[1723960268384,2.1942097,59643.0,59642.0,4e-07]
[1723960268654,2.37757156,59643.0,59642.0,4e-07]
[1723960269067,2.36357156,59643.0,59642.0,4e-07]
[1723960269267,2.37757156,59643.0,59642.0,4e-07]
[1723960269526,2.37753633,59643.0,59642.0,4e-07]
[1723960270307,2.2082097,59643.0,59642.0,4e-07]
[1723960270502,2.37753633,59643.0,59642.0,4e-07]
[1723960270704,2.37653633,59643.0,59642.0,4e-07]
[1723960270959,2.37453633,59643.0,59642.0,4e-07]
[1723960271155,2.37753633,59643.0,59642.0,4e-07]
[1723960271379,2.2082097,59643.0,59642.0,4e-07]
[1723960271769,2.2052097,59643.0,59642.0,4e-07]
[1723960272309,2.2082097,59643.0,59642.0,4e-07]
[1723960275383,2.03665516,59643.0,59642.0,4e-07]
[1723960276206,2.10387716,59643.0,59642.0,4e-07]
[1723960277399,2.27320379,59643.0,59642.0,4e-07]
[1723960277628,2.10387716,59643.0,59642.0,4e-07]
[1723960279223,2.11404823,59643.0,59642.0,4e-07]
[1723960279420,2.28320266,59643.0,59642.0,4e-07]
[1723960279619,2.45087117,59643.0,59642.0,4e-07]
[1723960280349,1.97594823,59643.0,59642.0,4e-07]
[1723960280551,2.06210266,59643.0,59642.0,4e-07]
[1723960280824,2.06210266,59643.0,59642.0,0.0637004]
[1723960280825,1.71724823,59643.0,59642.0,0.0637004]
[1723960281927,1.71631366,59643.0,59642.0,0.0637004]
[1723960282087,1.71724823,59643.0,59642.0,0.0637004]
[1723960282287,1.79924823,59643.0,59642.0,0.0637004]
[1723960282480,1.97080277,59643.0,59642.0,0.0637004]
[1723960282696,1.79824823,59643.0,59642.0,0.0637004]
[1723960282900,1.79824823,59643.0,59642.0,0.1456004]
[1723960282901,1.40649366,59643.0,59642.0,0.1456004]
[1723960284176,1.42949366,59643.0,59642.0,0.1456004]
[1723960292544,1.42849366,59643.0,59642.0,0.1456004]
[1723960292780,1.42649366,59643.0,59642.0,0.1456004]
[1723960293125,1.42949366,59643.0,59642.0,0.1456004]
[1723960293846,1.52828981,59643.0,59642.0,4e-07]
[1723960294025,1.52728981,59643.0,59642.0,4e-07]
[1723960294256,1.52528981,59643.0,59642.0,4e-07]
[1723960297059,1.52611481,59643.0,59642.0,4e-07]
[1723960297369,1.52911481,59643.0,59642.0,4e-07]
[1723960299853,1.42931866,59643.0,59642.0,4e-07]
[1723960300234,1.42731866,59643.0,59642.0,4e-07]
[1723960300439,1.43031866,59643.0,59642.0,4e-07]
[1723960301374,1.42931866,59643.0,59642.0,4e-07]
[1723960302200,1.42731866,59643.0,59642.0,4e-07]
[1723960302456,1.5988732,59643.0,59642.0,4e-07]
[1723960304580,1.42731866,59643.0,59642.0,4e-07]
[1723960305411,1.42831866,59643.0,59642.0,4e-07]
[1723960306847,1.43031866,59643.0,59642.0,4e-07]
[1723960310108,1.43031866,59643.0,59642.0,0.0786004]
[1723960311784,1.34531866,59643.0,59642.0,0.1443004]
[1723960312761,1.42731866,59643.0,59642.0,0.1443004]
[1723960313865,1.42731866,59643.0,59642.0,0.0786004]
[1723960316594,1.31531866,59643.0,59642.0,0.1443004]
[1723960316832,1.39731866,59643.0,59642.0,0.1443004]
[1723960318219,1.31531866,59643.0,59642.0,0.1443004]
[1723960318433,0.89052466,59643.0,59642.0,0.15873044]
[1723960318661,1.10644311,59643.0,59642.0,0.1443004]
[1723960318862,1.05624408,59643.0,59642.0,0.1443004]
[1723960319064,1.05624408,59643.0,59642.0,0.16521369]
[1723960319065,1.03114917,59643.0,59642.0,0.16521369]
[1723960319273,0.98095159,59643.0,59642.0,0.15007029]
[1723960319512,0.96695159,59643.0,59642.0,0.1443004]
[1723960319722,0.87235359,59643.0,59642.0,0.1443004]
[1723960319938,0.85835359,59643.0,59642.0,0.1443004]
[1723960320149,0.82611654,59643.0,59642.0,0.1443004]
[1723960320367,0.67921954,59643.0,59642.0,0.1443004]
[1723960320602,0.72951854,59643.0,59642.0,0.15007029]
[1723960321055,0.72951854,59643.0,59642.0,0.1443004]
[1723960321253,0.73551854,59643.0,59642.0,0.1443004]
[1723960321826,0.72951854,59643.0,59642.0,0.1443004]
[1723960322019,0.507665,59643.0,59642.0,0.16376074]
[1723960322174,0.503665,59643.0,59642.0,0.16476074]
[1723960322354,0.503665,59643.0,59642.0,0.17053063]
[1723960322550,0.503665,59643.0,59642.0,0.17153063]
[1723960324017,0.553964,59643.0,59642.0,0.15207029]
[1723960324421,0.553964,59643.0,59642.0,0.1463004]
[1723960324422,0.503665,59643.0,59642.0,0.1463004]
[1723960324822,0.503665,59643.0,59642.0,0.15207029]
[1723960325631,0.553964,59643.0,59642.0,0.18236802]
[1723960325833,0.553964,59643.0,59642.0,0.15207029]
[1723960327142,0.503665,59643.0,59642.0,0.15207029]
[1723960327716,0.553964,59643.0,59642.0,0.15207029]
[1723960328952,0.553964,59643.0,59642.0,0.1463004]
[1723960329157,0.553964,59643.0,59642.0,0.15207029]
[1723960330360,1.10931254,59643.0,59642.0,0.00777029]
[1723960330565,1.10931254,59643.0,59642.0,0.0020004]
[1723960331331,1.10931254,59643.0,59642.0,0.0010004]
[1723960331515,1.10931254,59643.0,59642.0,4e-07]
[1723960331712,1.11631254,59643.0,59642.0,4e-07]
[1723960331934,1.12331254,59643.0,59642.0,4e-07]
[1723960332124,1.11631254,59643.0,59642.0,4e-07]
[1723960332330,1.12625424,59643.0,59642.0,4e-07]
[1723960332693,1.13325424,59643.0,59642.0,4e-07]
[1723960332891,1.12625424,59643.0,59642.0,4e-07]
[1723960333416,1.04425424,59643.0,59642.0,4e-07]
[1723960334178,1.26675424,59643.0,59642.0,4e-07]
[1723960334383,1.59871258,59643.0,59642.0,4e-07]
[1723960334577,1.6237481,59643.0,59642.0,4e-07]
[1723960334752,1.52360603,59643.0,59642.0,4e-07]
[1723960335132,1.51660603,59643.0,59642.0,4e-07]
[1723960335334,1.50960603,59643.0,59642.0,4e-07]
[1723960335562,1.62973185,59643.0,59642.0,4e-07]
[1723960336106,1.61973185,59643.0,59642.0,4e-07]
[1723960336250,1.62973185,59643.0,59642.0,4e-07]
[1723960337461,1.52960603,59643.0,59642.0,4e-07]
[1723960337665,1.54260603,59643.0,59642.0,4e-07]
[1723960338146,1.64274481,59643.0,59642.0,4e-07]
[1723960338428,1.63974481,59643.0,59642.0,4e-07]
[1723960338640,1.64274481,59643.0,59642.0,4e-07]
[1723960339015,1.64174481,59643.0,59642.0,4e-07]
[1723960339376,1.54260603,59643.0,59642.0,4e-07]
[1723960339578,1.70838313,59643.0,59642.0,4e-07]
[1723960339798,1.70938313,59643.0,59642.0,4e-07]
[1723960340389,1.70838313,59643.0,59642.0,4e-07]
[1723960340598,1.70638313,59643.0,59642.0,4e-07]
[1723960340797,1.54260603,59643.0,59642.0,4e-07]
[1723960341022,1.66783675,59643.0,59642.0,4e-07]
[1723960341250,1.54260603,59643.0,59642.0,4e-07]
[1723960342057,1.66789682,59643.0,59642.0,4e-07]
[1723960342262,1.54260603,59643.0,59642.0,4e-07]
[1723960343978,1.54060603,59643.0,59642.0,4e-07]
[1723960344178,1.39910603,59643.0,59642.0,4e-07]
[1723960345867,1.49936217,59643.0,59642.0,4e-07]
[1723960346350,1.39910603,59643.0,59642.0,4e-07]
[1723960346577,1.49936568,59643.0,59642.0,4e-07]
[1723960347073,1.52439756,59643.0,59642.0,4e-07]
[1723960347328,1.49936996,59643.0,59642.0,4e-07]
[1723960347570,1.49937367,59643.0,59642.0,4e-07]
[1723960348044,1.67092821,59643.0,59642.0,4e-07]
[1723960350443,1.57066057,59643.0,59642.0,4e-07]
[1723960351179,1.39910603,59643.0,59642.0,4e-07]
[1723960351678,1.49938552,59643.0,59642.0,4e-07]
[1723960353897,1.39910603,59643.0,59642.0,4e-07]
[1723960354370,1.49938552,59643.0,59642.0,4e-07]
[1723960354971,1.48010603,59643.0,59642.0,4e-07]
[1723960355587,1.54400603,59643.0,59642.0,4e-07]
[1723960356669,1.53400603,59643.0,59642.0,4e-07]
[1723960357207,1.52800603,59643.0,59642.0,4e-07]
[1723960358773,1.54200603,59643.0,59642.0,4e-07]
[1723960360506,1.86056903,59643.0,59642.0,4e-07]
[1723960360904,2.03212357,59643.0,59642.0,4e-07]
[1723960361604,2.01812357,59643.0,59642.0,4e-07]
[1723960361852,2.03212357,59643.0,59642.0,4e-07]
[1723960362275,2.01812357,59643.0,59642.0,4e-07]
[1723960362499,2.00412357,59643.0,59642.0,4e-07]
[1723960362699,2.01812357,59643.0,59642.0,4e-07]
[1723960363322,2.00412357,59643.0,59642.0,4e-07]
[1723960363527,2.01812357,59643.0,59642.0,4e-07]
[1723960363858,2.03405814,59643.0,59642.0,4e-07]
[1723960364344,1.8625036,59643.0,59642.0,4e-07]
[1723960364542,1.8615036,59643.0,59642.0,4e-07]
[1723960364774,1.8625036,59643.0,59642.0,4e-07]
[1723960369977,2.01300211,59643.0,59642.0,4e-07]
[1723960370146,2.01301282,59643.0,59642.0,4e-07]
[1723960370828,2.18456736,59643.0,59642.0,4e-07]
[1723960372620,2.01301282,59643.0,59642.0,4e-07]
[1723960373263,1.8625036,59643.0,59642.0,4e-07]
[1723960373463,2.01299441,59643.0,59642.0,4e-07]
[1723960374488,1.8625036,59643.0,59642.0,4e-07]
[1723960375653,2.01297758,59643.0,59642.0,4e-07]
[1723960376006,1.8625036,59643.0,59642.0,4e-07]
[1723960377230,1.7805036,59643.0,59642.0,4e-07]
[1723960377460,1.8625036,59643.0,59642.0,4e-07]
[1723960383282,1.85756903,59643.0,59642.0,4e-07]
[1723960383435,1.86056903,59643.0,59642.0,4e-07]
[1723960383672,1.8625036,59643.0,59642.0,4e-07]
[1723960384879,2.01300031,59643.0,59642.0,4e-07]
[1723960385098,1.8625036,59643.0,59642.0,4e-07]
[1723960385664,2.0130142,59643.0,59642.0,4e-07]
[1723960386065,1.8625036,59643.0,59642.0,4e-07]
[1723960388151,1.86056903,59643.0,59642.0,4e-07]
[1723960388367,2.01102399,59643.0,59642.0,4e-07]
[1723960388971,2.01195856,59643.0,59642.0,4e-07]
[1723960389419,2.01295856,59643.0,59642.0,4e-07]
[1723960392404,1.71566903,59643.0,59642.0,0.0758004]
[1723960392788,1.71566903,59643.0,59642.0,0.1383004]
[1723960395711,1.54800503,59643.0,59642.0,0.1383004]
[1723960395914,1.59137202,59643.0,59642.0,0.1383004]
[1723960396040,1.13304402,59643.0,59642.0,0.15213044]
[1723960396225,1.10797476,59643.0,59642.0,0.15213044]
[1723960396439,1.00767703,59643.0,59642.0,0.15213044]
[1723960396640,1.08289724,59643.0,59642.0,0.15213044]
[1723960397036,1.06889724,59643.0,59642.0,0.15213044]
[1723960397454,1.17889724,59643.0,59642.0,0.15213044]
[1723960397646,1.16489724,59643.0,59642.0,0.15213044]
[1723960398094,1.17889724,59643.0,59642.0,0.15213044]
[1723960398470,1.16489724,59643.0,59642.0,0.15213044]
[1723960399012,1.17489724,59643.0,59642.0,0.15213044]
[1723960399390,1.09967703,59643.0,59642.0,0.15213044]
[1723960400416,1.14979107,59643.0,59642.0,0.15213044]
[1723960401547,1.14979123,59643.0,59642.0,0.15213044]
[1723960403520,1.14979123,59643.0,59642.0,0.1383004]
[1723960403521,1.31745523,59643.0,59642.0,0.1383004]
[1723960403701,1.26734103,59643.0,59642.0,0.1383004]
[1723960404309,1.31743939,59643.0,59642.0,0.1383004]
[1723960404709,1.31743939,59643.0,59642.0,4e-07]
[1723960405110,1.26734103,59643.0,59642.0,4e-07]
[1723960405711,1.31744368,59643.0,59642.0,4e-07]
[1723960406112,1.43500503,59643.0,59642.0,4e-07]
[1723960406408,1.26734103,59643.0,59642.0,4e-07]
[1723960406885,1.43500503,59643.0,59642.0,4e-07]
[1723960407237,1.3174416,59643.0,59642.0,4e-07]
[1723960407640,1.5735056,59643.0,59642.0,4e-07]
[1723960408016,1.52340503,59643.0,59642.0,4e-07]
[1723960408368,1.57350157,59643.0,59642.0,4e-07]
[1723960408889,1.50810157,59643.0,59642.0,4e-07]
[1723960410548,1.45800503,59643.0,59642.0,4e-07]
[1723960410752,1.50809598,59643.0,59642.0,4e-07]
[1723960417405,1.50809598,59643.0,59642.0,0.0811004]
[1723960417580,1.50809598,59643.0,59642.0,4e-07]
[1723960418675,1.53314146,59643.0,59642.0,4e-07]
[1723960419194,1.60210503,59643.0,59642.0,4e-07]
[1723960419571,1.72733241,59643.0,59642.0,4e-07]
[1723960419751,1.89888695,59643.0,59642.0,4e-07]
[1723960420579,1.55818194,59643.0,59642.0,4e-07]
[1723960420779,1.53314092,59643.0,59642.0,4e-07]
[1723960421230,1.45800503,59643.0,59642.0,4e-07]
[1723960421602,1.55818194,59643.0,59642.0,4e-07]
[1723960422033,1.45800503,59643.0,59642.0,4e-07]
[1723960422228,1.5581978,59643.0,59642.0,4e-07]
[1723960422844,1.45800503,59643.0,59642.0,4e-07]
[1723960423420,1.5581978,59643.0,59642.0,4e-07]
[1723960424647,1.55822531,59643.0,59642.0,4e-07]
[1723960425486,1.45800503,59643.0,59642.0,4e-07]
[1723960426193,1.55830869,59643.0,59642.0,4e-07]
[1723960427121,1.55830887,59643.0,59642.0,4e-07]
[1723960427401,1.45800503,59643.0,59642.0,4e-07]
[1723960428565,1.58328039,59643.0,59642.0,4e-07]
[1723960428761,1.45800503,59643.0,59642.0,4e-07]
[1723960429967,1.55832741,59643.0,59642.0,4e-07]
[1723960430379,1.58340455,59643.0,59642.0,4e-07]
[1723960431014,1.45800503,59643.0,59642.0,4e-07]
[1723960431174,1.58340455,59643.0,59642.0,4e-07]
[1723960433798,1.58343507,59643.0,59642.0,4e-07]
[1723960435481,1.45800503,59643.0,59642.0,4e-07]
[1723960443656,1.59800503,59643.0,59642.0,4e-07]
[1723960443857,1.91625996,59643.0,59642.0,4e-07]
[1723960444373,1.76566903,59643.0,59642.0,4e-07]
[1723960445250,1.76866903,59643.0,59642.0,4e-07]
[1723960445853,1.91944903,59643.0,59642.0,4e-07]
[1723960446633,1.76866903,59643.0,59642.0,4e-07]
[1723960446812,1.91942679,59643.0,59642.0,4e-07]
[1723960450667,2.15136136,59643.0,59642.0,4e-07]
[1723960450871,2.0006036,59643.0,59642.0,4e-07]
[1723960451202,2.1682676,59643.0,59642.0,4e-07]
[1723960451404,2.32779718,59643.0,59642.0,4e-07]
[1723960451843,2.33179718,59643.0,59642.0,4e-07]
[1723960452603,2.16413318,59643.0,59642.0,4e-07]
[1723960453031,2.0086036,59643.0,59642.0,4e-07]
[1723960453459,2.34572254,59643.0,59642.0,4e-07]
[1723960453663,2.33172254,59643.0,59642.0,4e-07]
[1723960453867,2.1762676,59643.0,59642.0,4e-07]
[1723960454309,2.3456748,59643.0,59642.0,4e-07]
[1723960454442,2.1622676,59643.0,59642.0,4e-07]
[1723960454637,2.1762676,59643.0,59642.0,4e-07]
[1723960454844,2.1622676,59643.0,59642.0,4e-07]
[1723960455332,2.33164364,59643.0,59642.0,4e-07]
[1723960456180,2.31764364,59643.0,59642.0,4e-07]
[1723960456400,2.33164364,59643.0,59642.0,4e-07]
[1723960456953,2.34564364,59643.0,59642.0,4e-07]
[1723960457449,2.1762676,59643.0,59642.0,4e-07]
[1723960461101,2.2434886,59643.0,59642.0,4e-07]
[1723960478230,2.41504314,59643.0,59642.0,4e-07]
[1723960479949,2.58406722,59643.0,59642.0,4e-07]
[1723960480577,2.41504314,59643.0,59642.0,4e-07]
[1723960485713,2.58270714,59643.0,59642.0,4e-07]
[1723960486895,0.757627,59632.0,59631.0,0.0606]
[1723960487096,1.66327533,59632.0,59631.0,0.0606]
[1723960487508,1.66327533,59632.0,59631.0,0.03500893]
[1723960488322,1.57827533,59632.0,59631.0,0.03500893]
[1723960488572,1.66127533,59632.0,59631.0,0.03500893]
[1723960488814,1.66327533,59632.0,59631.0,0.03500893]
[1723960489015,1.67727533,59632.0,59631.0,0.03500893]
[1723960490168,1.69127533,59632.0,59631.0,0.03500893]
[1723960490585,1.70131566,59632.0,59631.0,0.03500893]
[1723960490995,1.70131566,59632.0,59631.0,0.11730893]
[1723960496354,1.85168762,59632.0,59631.0,0.11730893]
[1723960497132,1.85168762,59632.0,59631.0,0.11821643]
[1723960497133,1.70131566,59632.0,59631.0,0.11821643]
[1723960497334,1.83468762,59632.0,59631.0,0.11821643]
[1723960497574,1.68431566,59632.0,59631.0,0.11821643]
[1723960497996,1.69831566,59632.0,59631.0,0.11821643]
[1723960498398,1.68431566,59632.0,59631.0,0.11821643]
[1723960498795,1.69831566,59632.0,59631.0,0.11821643]
[1723960498990,1.68431566,59632.0,59631.0,0.11821643]
[1723960499381,1.69831566,59632.0,59631.0,0.11821643]
[1723960499583,1.68431566,59632.0,59631.0,0.11821643]
[1723960499789,1.69831566,59632.0,59631.0,0.11821643]
[1723960499990,1.69931566,59632.0,59631.0,0.11821643]
[1723960500218,1.69831566,59632.0,59631.0,0.11821643]
[1723960500850,1.69931566,59632.0,59631.0,0.11821643]
[1723960502835,1.70131566,59632.0,59631.0,0.11821643]
[1723960503060,1.69831566,59632.0,59631.0,0.11821643]
[1723960504916,1.61631566,59632.0,59631.0,0.11821643]
[1723960505113,1.69831566,59632.0,59631.0,0.11821643]
[1723960505528,1.69931566,59632.0,59631.0,0.11821643]
[1723960505726,1.75851566,59632.0,59631.0,0.0009075]
[1723960505954,1.84972193,59632.0,59631.0,0.1485075]
[1723960506112,1.70131566,59632.0,59631.0,0.1485075]
[1723960506312,1.70131566,59632.0,59631.0,0.0832075]
[1723960507747,1.69831566,59632.0,59631.0,0.0832075]
[1723960510390,1.69914066,59632.0,59631.0,0.0832075]
[1723960518506,1.61714066,59632.0,59631.0,0.1455075]
[1723960519597,1.60314066,59632.0,59631.0,0.1455075]
[1723960520016,1.61514066,59632.0,59631.0,0.1455075]
[1723960520614,1.60114066,59632.0,59631.0,0.1455075]
[1723960521028,1.61514066,59632.0,59631.0,0.1455075]
[1723960521645,1.60114066,59632.0,59631.0,0.1455075]
[1723960521776,1.61314066,59632.0,59631.0,0.1455075]
[1723960522884,1.32244566,59632.0,59631.0,0.1455075]
[1723960523095,1.44794748,59632.0,59631.0,0.1455075]
[1723960523515,1.32244566,59632.0,59631.0,0.1455075]
[1723960524570,1.42244566,59632.0,59631.0,0.1455075]
[1723960525560,1.52282244,59632.0,59631.0,0.1455075]
[1723960526192,1.52282244,59632.0,59631.0,0.0832075]
[1723960526517,1.54793667,59632.0,59631.0,0.0832075]
[1723960529100,1.54790376,59632.0,59631.0,0.0832075]
[1723960529935,1.54750008,59632.0,59631.0,0.0832075]
[1723960533788,1.5475161,59632.0,59631.0,0.0832075]
[1723960538218,1.42204198,59632.0,59631.0,0.0832075]
[1723960542259,1.42204198,59632.0,59631.0,0.0009075]
[1723960545317,1.56984198,59632.0,59631.0,0.0009075]
[1723960545460,1.59284198,59632.0,59631.0,0.0009075]
[1723960545660,1.59184198,59632.0,59631.0,0.0009075]
[1723960545919,1.90810592,59632.0,59631.0,0.0009075]
[1723960547500,1.90812121,59632.0,59631.0,0.0009075]
[1723960547737,1.75753698,59632.0,59631.0,0.0009075]
[1723960550854,1.96209152,59632.0,59631.0,0.0009075]
[1723960551061,1.96109152,59632.0,59631.0,0.0009075]
[1723960551266,1.78753698,59632.0,59631.0,0.0009075]
[1723960551493,1.79053698,59632.0,59631.0,0.0009075]
[1723960552126,1.78953698,59632.0,59631.0,0.0009075]
[1723960552344,1.79053698,59632.0,59631.0,0.0009075]
[1723960553319,1.95909152,59632.0,59631.0,0.0009075]
[1723960554723,1.78753698,59632.0,59631.0,0.0009075]
[1723960555598,1.79053698,59632.0,59631.0,0.0009075]
[1723960555828,1.87053698,59632.0,59631.0,0.0009075]
[1723960556673,2.02101473,59632.0,59631.0,0.0009075]